bitfinex/quotes_ETHUSD_20250107
["timestamp","ask_amount","ask_price","bid_price","bid_amount"]
[1736279922804,2.59,3383.8,3383.4,2.95552]
[1736279923008,0.02467061,3383.7,3383.4,2.95552]
[1736279923893,2.59,3383.8,3383.4,2.95552]
[1736279924133,2.59,3383.8,3383.5,2.95544]
[1736279924335,0.02467061,3384.3,3383.6,2.95541]
[1736279924636,0.02467061,3384.3,3383.3,2.98524325]
[1736279924787,0.02467061,3384.5,3383.7,2.95531]
[1736279924994,0.02467061,3384.5,3383.9,2.95515]
[1736279925196,0.02467061,3384.5,3383.9,2.95509]
[1736279925395,0.02467061,3384.5,3384.0,2.95506]
[1736279925625,0.02467061,3384.5,3384.1,2.95499]
[1736279925825,0.02467061,3384.7,3384.1,2.95499]
[1736279926293,0.02467061,3385.0,3384.1,2.95499]
[1736279926504,0.29788006,3384.9,3384.1,2.95499]
[1736279926832,0.29788006,3384.9,3383.8,0.02954915]
[1736279926833,0.02467061,3384.8,3383.8,0.02954915]
[1736279927147,0.02467061,3384.8,3383.7,0.60626858]
[1736279927148,0.02467061,3384.8,3384.0,2.95505]
[1736279927347,0.02467061,3384.8,3383.7,0.60626858]
[1736279927549,2.95419,3385.1,3383.9,2.9551]
[1736279927709,0.58155667,3385.0,3384.0,2.955]
[1736279927903,0.58155667,3385.0,3384.2,2.9549]
[1736279928509,0.58155667,3385.0,3383.9,3.0]
[1736279928711,0.02467061,3385.0,3384.0,0.02954895]
[1736279928905,0.02467061,3385.7,3384.9,2.95427]
[1736279929105,0.02467061,3385.7,3385.1,2.95411]
[1736279929424,0.02467061,3386.1,3385.2,2.954]
[1736279929623,0.02467061,3386.1,3385.3,2.95392]
[1736279929824,0.29246706,3386.0,3385.3,2.95392]
[1736279930022,0.02467061,3385.9,3384.8,1.6209]
[1736279930332,0.02467061,3386.1,3385.6,2.95365]
[1736279930652,0.02467061,3386.4,3385.6,2.95365]
[1736279930806,0.02467061,3386.7,3385.2,0.5920097]
[1736279931014,3.60280596,3386.6,3385.4,2.95377]
[1736279931237,0.02467061,3386.5,3385.2,0.5920097]
[1736279931434,2.97758061,3386.5,3385.1,3.0]
[1736279931806,2.97758061,3386.5,3385.1,3.59268893]
[1736279932522,0.02467061,3386.5,3385.6,2.95367]
[1736279932725,0.02467061,3386.5,3385.7,0.02953683]
[1736279933019,0.02467061,3386.5,3386.0,2.95332]
[1736279933212,2.59,3387.0,3386.0,2.95332]
[1736279933213,0.02467061,3386.9,3386.0,2.95332]
[1736279935156,0.02467061,3386.9,3385.8,2.95351]
[1736279935316,0.02467061,3386.9,3386.1,2.9532]
[1736279935516,2.59,3387.0,3385.7,2.95357]
[1736279935517,2.59,3387.7,3386.8,2.9526]
[1736279935757,0.02467061,3387.6,3386.9,2.95255]
[1736279935956,0.02467061,3387.6,3386.5,0.02952549]
[1736279936164,0.02467061,3387.6,3387.0,2.95244]
[1736279936868,1.14158988,3387.8,3387.3,3.0]
[1736279937162,1.14158988,3387.8,3387.0,0.29819636]
[1736279937163,0.02467061,3388.0,3387.5,2.952]
[1736279937361,0.02467061,3388.0,3387.6,3.0]
[1736279937660,2.59,3389.1,3388.0,2.95156]
[1736279937813,0.58119167,3389.0,3387.8,1.6321]
[1736279938014,0.02467061,3389.0,3387.8,1.6321]
[1736279938322,0.02467061,3389.0,3387.3,1.6321]
[1736279938323,2.59,3388.9,3387.3,1.6321]
[1736279938522,2.95118,3388.5,3387.3,4.58428]
[1736279938716,0.02467061,3388.4,3387.4,2.9521]
[1736279939029,0.02467061,3388.4,3387.3,3.0]
[1736279939345,0.02467061,3388.4,3387.6,2.95193]
[1736279939546,0.02467061,3388.4,3387.4,0.57717703]
[1736279939746,2.59,3388.7,3387.4,0.57717703]
[1736279939747,0.02467061,3388.6,3387.7,2.95181]
[1736279939931,2.97574061,3388.6,3387.6,3.0]
[1736279940256,2.59,3388.7,3387.6,3.0]
[1736279940445,0.259,3388.6,3387.6,3.0]
[1736279940819,0.259,3388.6,3387.4,0.57717703]
[1736279941022,0.259,3388.6,3387.4,0.60669447]
[1736279941221,0.259,3388.6,3387.6,5.95188]
[1736279941675,3.2101,3388.6,3387.6,3.0]
[1736279941849,2.59,3388.4,3387.4,0.57717703]
[1736279942056,2.59,3388.4,3387.4,3.57717703]
[1736279942440,2.59,3388.4,3387.1,2.95236]
[1736279942640,2.59,3388.0,3387.2,0.59691261]
[1736279942947,2.59,3387.2,3386.4,0.59313094]
[1736279943149,5.54226,3387.3,3386.4,0.59313094]
[1736279943381,2.59,3387.3,3386.4,0.59313094]
[1736279943556,2.95247,3387.0,3386.0,3.0]
[1736279943753,2.95247,3387.0,3386.0,3.47041773]
[1736279944138,2.59,3387.3,3386.1,0.02953191]
[1736279944345,2.95258,3386.9,3385.9,2.95335]
[1736279944553,2.95258,3386.9,3386.0,3.0]
[1736279945041,2.95264,3386.8,3385.6,2.12362689]
[1736279945238,2.95248,3387.0,3385.8,2.95343]
[1736279945439,2.9528,3386.7,3385.7,0.83874169]
[1736279945785,2.59,3386.7,3385.4,2.9538]
[1736279945939,2.59,3386.7,3385.2,1.5316]
[1736279946385,2.95294,3386.5,3385.5,2.95376]
[1736279946566,2.59,3386.7,3385.3,0.6188442]
[1736279946772,2.59,3386.7,3385.4,0.5575]
[1736279946942,2.59,3386.7,3385.5,0.57079442]
[1736279947690,2.59,3386.7,3385.9,2.95339]
[1736279948243,2.59,3386.7,3385.7,2.95356]
[1736279949874,2.59,3386.7,3385.5,0.57079442]
[1736279950342,2.59,3386.7,3385.6,0.02953489]
[1736279950563,2.59,3386.7,3385.8,2.95348]
[1736279950740,5.54273,3386.7,3385.7,3.34455293]
[1736279951047,2.59,3386.6,3386.1,3.0]
[1736279951251,2.59,3386.6,3385.9,1.5659]
[1736279951872,2.59,3386.6,3386.0,3.0]
[1736279952187,2.59,3386.6,3386.2,2.95308]
[1736279952686,6.37152773,3387.2,3386.1,0.751925]
[1736279952687,2.59,3387.1,3386.3,2.95307]
[1736279952849,2.59,3387.1,3386.1,3.705145]
[1736279953051,2.59,3387.1,3386.2,3.0]
[1736279953446,2.95247,3387.0,3386.1,3.751925]
[1736279953660,2.59,3387.1,3386.2,3.7802545]
[1736279954341,2.59,3387.1,3386.2,0.8271145]
[1736279954546,2.59,3387.1,3386.3,2.95302]
[1736279954798,2.59,3387.1,3386.5,2.95285]
[1736279955088,2.59,3387.5,3386.6,1.5979267]
[1736279955386,2.59,3387.5,3386.8,3.0]
[1736279956848,2.59,3387.5,3386.8,2.95262]
[1736279957494,2.59,3387.5,3386.7,0.16054267]
[1736279957650,2.59,3387.5,3386.7,3.16054267]
[1736279957856,2.59,3387.5,3386.2,0.8271145]
[1736279958198,2.95242,3387.1,3386.2,1.41715108]
[1736279958363,2.95242,3387.1,3386.1,2.95324]
[1736279959055,2.95242,3387.1,3386.1,3.55369328]
[1736279959778,2.59,3387.1,3386.3,3.0]
[1736279960177,5.54241,3387.1,3386.1,3.60045328]
[1736279960353,2.59,3387.1,3386.2,0.65537533]
[1736279960554,2.95246,3387.0,3386.2,0.65537533]
[1736279961163,2.59,3387.1,3386.3,0.57952968]
[1736279961367,2.59,3387.1,3386.8,3.0]
[1736279961656,2.59,3387.1,3386.5,4.57328]
[1736279961989,5.5424,3387.1,3386.2,2.95313]
[1736279962149,5.5424,3387.1,3386.3,3.0]
[1736279962498,3.41923773,3386.8,3385.9,2.95338]
[1736279962703,6.00923773,3386.8,3385.7,0.97387449]
[1736279962909,2.59,3386.7,3385.4,1.6204]
[1736279963069,2.59,3386.7,3385.9,2.95338]
[1736279963268,2.59,3386.7,3386.0,2.95332]
[1736279963468,2.59,3387.0,3386.3,2.95299]
[1736279963670,2.59,3387.0,3386.4,2.95291]
[1736279964003,3.41923773,3387.2,3386.1,1.6299]
[1736279964228,3.41923773,3387.2,3386.3,2.953]
[1736279964383,3.41923773,3387.2,3386.2,0.46299]
[1736279964584,2.59,3387.5,3386.6,2.95274]
[1736279964823,2.59,3387.5,3386.5,0.02952524]
[1736279965023,2.59,3387.5,3386.7,2.95271]
[1736279966123,2.59,3387.5,3386.4,0.55]
[1736279966327,2.59,3387.5,3386.4,1.17477167]
[1736279966532,2.59,3387.5,3386.7,3.0]
[1736279966903,2.59,3387.5,3386.7,5.9527]
[1736279967107,2.59,3387.9,3386.8,0.02952522]
[1736279967303,2.59,3387.9,3386.7,1.5259]
[1736279967487,2.59,3387.9,3387.3,3.0]
[1736279967896,2.59,3387.9,3387.3,2.95212]
[1736279968259,2.59,3388.4,3387.6,2.95189]
[1736279968550,2.95111,3388.6,3387.7,3.0]
[1736279968551,2.59,3388.5,3387.7,3.0]
[1736279969315,2.59,3388.5,3387.5,2.952]
[1736279969543,2.59,3388.5,3387.6,4.04726]
[1736279969931,2.95126,3388.4,3387.6,1.04726]
[1736279970100,2.95126,3388.4,3387.4,2.95209]
[1736279970702,2.59,3388.5,3387.2,3.57951927]
[1736279970919,2.59,3388.5,3387.2,3.55]
[1736279971123,2.59,3388.5,3387.6,2.95189]
[1736279971303,2.59,3388.5,3387.4,3.0]
[1736279971504,2.59,3388.5,3387.8,3.0]
[1736279972359,2.59,3388.8,3387.9,1.5665]
[1736279972560,2.59,3389.1,3387.9,1.5665]
[1736279972760,2.59,3389.1,3388.0,3.5385541]
[1736279972933,2.59,3389.1,3388.0,0.5870141]
[1736279973132,2.59,3389.1,3388.5,2.95113]
[1736279973418,2.59,3389.1,3388.6,3.0]
[1736279973737,2.95114,3388.6,3387.5,3.60222]
[1736279973954,2.59,3388.3,3387.6,0.59535065]
[1736279974115,2.95142,3388.2,3387.6,0.59535065]
[1736279974321,5.54135,3388.3,3387.6,0.59535065]
[1736279974555,5.54135,3388.3,3387.4,3.0]
[1736279975634,2.59,3388.3,3387.4,2.95204]
[1736279975835,2.59,3388.3,3387.4,3.302244]
[1736279976353,5.54133,3388.3,3387.5,0.58300044]
[1736279977781,2.59,3388.3,3387.5,3.53502044]
[1736279978130,2.59,3388.3,3387.4,3.350204]
[1736279978549,2.95142,3388.2,3387.4,0.350204]
[1736279978738,2.59,3388.3,3387.4,3.302304]
[1736279978955,5.54141,3388.3,3387.5,0.38892636]
[1736279979627,5.54141,3388.3,3387.4,0.350204]
[1736279979865,5.54141,3388.3,3387.4,3.302294]
[1736279980062,2.59,3388.3,3387.5,2.952]
[1736279980261,2.59,3388.3,3387.4,0.350204]
[1736279980450,5.54137,3388.3,3387.4,0.350204]
[1736279980849,5.54137,3388.3,3387.4,3.302294]
[1736279981049,2.59,3388.3,3387.5,0.38892536]
[1736279981256,2.59,3388.3,3387.4,0.350204]
[1736279981435,2.59,3388.3,3387.7,3.0]
[1736279982026,2.59,3388.3,3387.4,0.350204]
[1736279982229,2.59,3388.3,3387.4,3.302284]
[1736279982472,2.59,3388.3,3386.8,0.51129227]
[1736279982625,2.59,3388.3,3386.2,42.55523773]
[1736279982626,2.95203,3387.5,3386.7,0.57611174]
[1736279983260,5.54246,3387.0,3386.0,2.95325]
[1736279983442,2.95246,3387.0,3386.0,2.95325]
[1736279983747,5.54239,3387.1,3386.1,3.0]
[1736279984170,2.95248,3387.0,3386.1,3.0]
[1736279984342,2.95248,3387.0,3386.1,3.746685]
[1736279985467,2.59,3387.1,3386.1,3.699895]
[1736279985639,2.59,3387.1,3386.2,2.95311]
[1736279985843,2.59,3387.1,3386.2,0.55]
[1736279986029,2.59,3387.5,3386.3,0.02953037]
[1736279986231,2.59,3387.5,3386.4,3.0]
[1736279986431,2.59,3387.5,3386.6,2.95275]
[1736279986631,2.59,3387.5,3386.7,3.0]
[1736279987573,5.54205,3387.5,3386.7,3.0]
[1736279987778,2.59,3387.9,3386.6,1.6513]
[1736279987983,2.9518,3387.8,3386.8,2.95255]
[1736279988135,5.9045,3387.8,3386.9,3.46333751]
[1736279988474,8.85632,3387.8,3386.9,3.46333751]
[1736279989860,5.9045,3387.8,3386.9,3.41583751]
[1736279990064,5.9045,3387.8,3387.2,3.0]
[1736279990977,5.9045,3387.8,3386.9,0.46333751]
[1736279991281,3.41923773,3387.6,3386.9,0.46333751]
[1736279991442,9.32373773,3387.6,3386.8,2.95256]
[1736279991635,9.32373773,3387.6,3386.6,1.6513]
[1736279992059,9.32373773,3387.6,3386.8,3.0]
[1736279992457,9.32373773,3387.6,3387.0,3.0]
[1736279992872,9.32373773,3387.6,3386.9,0.58592018]
[1736279993047,9.32373773,3387.6,3387.0,2.95244]
[1736279993274,9.32373773,3387.6,3387.1,3.0]
[1736279993486,5.9045,3387.6,3387.1,2.95236]
[1736279993668,5.9045,3387.6,3386.9,0.58592018]
[1736279993869,5.9045,3387.6,3387.0,3.0]
[1736279994472,5.9045,3387.6,3387.0,2.95239]
[1736279995896,9.32373773,3387.6,3386.9,3.0]
[1736279996194,2.95222,3387.3,3386.3,3.53269527]
[1736279996489,8.85672,3387.3,3386.4,3.0]
[1736279996687,8.85672,3387.3,3386.4,4.01147593]
[1736279997187,8.85672,3387.3,3386.4,3.96445593]
[1736279997489,5.9045,3387.3,3386.5,2.95288]
[1736279997691,5.9045,3387.3,3386.5,0.5575]
[1736279997862,5.9045,3387.3,3386.9,2.95252]
[1736279998805,5.9045,3387.3,3386.5,0.5575]
[1736279999011,5.9045,3387.3,3387.0,2.95244]
[1736279999244,5.9045,3387.3,3387.1,2.95235]
[1736279999398,5.9045,3387.3,3386.9,2.95251]
[1736279999611,5.9045,3387.3,3387.0,3.0]
[1736279999914,5.9045,3387.3,3386.7,2.95271]
[1736280000097,5.9045,3387.3,3386.5,2.95285]
[1736280000305,5.9045,3387.3,3386.7,3.0]
[1736280000633,5.9045,3387.3,3386.7,2.95269]
[1736280000938,5.9045,3387.3,3386.9,3.0]
[1736280001349,5.9045,3387.3,3386.7,3.0]
[1736280001776,5.9045,3387.3,3386.5,0.73794202]
[1736280001981,5.9045,3387.3,3387.2,7.56129]
[1736280002658,5.9045,3387.3,3387.2,5.95229]
[1736280002867,5.9045,3387.3,3387.2,6.55136983]
[1736280003365,5.9045,3387.3,3387.2,6.40850983]
[1736280003678,5.9045,3387.3,3386.7,4.18566903]
[1736280003882,2.95238,3387.1,3386.7,1.23297903]
[1736280004036,2.59,3387.2,3386.7,1.23297903]
[1736280004237,5.9045,3387.1,3386.7,1.23297903]
[1736280004868,5.9045,3387.1,3386.1,2.95322]
[1736280004869,2.59,3386.9,3385.7,1.23297903]
[1736280005185,8.4945,3386.9,3386.3,2.95302]
[1736280005335,8.4945,3386.9,3386.6,2.95274]
[1736280005535,8.4945,3386.9,3386.6,2.80988]
[1736280005835,5.9045,3386.9,3386.5,2.95288]
[1736280006282,5.9045,3386.9,3386.1,1.6608]
[1736280006428,5.9045,3386.9,3386.2,3.0]
[1736280006631,5.9045,3386.9,3386.5,2.95282]
[1736280006931,5.9045,3386.9,3386.6,2.9528]
[1736280007434,5.9045,3386.9,3386.4,5.95297]
[1736280007629,5.9045,3386.9,3386.3,3.0]
[1736280007835,5.9045,3386.9,3386.8,2.95263]
[1736280008034,5.9045,3386.9,3386.8,5.95263]
[1736280009688,5.9045,3386.9,3386.3,4.18602903]
[1736280009835,5.9045,3386.9,3386.4,3.0]
[1736280010236,5.9045,3386.9,3386.4,2.95296]
[1736280011567,5.9045,3386.9,3386.3,3.0]
[1736280012171,6.49495,3386.9,3386.3,3.0]
[1736280012351,9.44757,3386.9,3386.2,0.60564161]
[1736280012772,2.59,3386.8,3385.9,2.95333]
[1736280013090,2.59,3386.8,3386.1,0.59884661]
[1736280013250,2.59,3386.8,3385.9,2.95335]
[1736280013448,2.59,3386.8,3385.6,1.23297903]
[1736280013449,3.41923773,3386.2,3385.6,1.23297903]
[1736280013694,3.41923773,3385.8,3385.6,1.23297903]
[1736280013909,2.95359,3385.7,3385.6,1.23297903]
[1736280014049,8.85809,3385.7,3385.6,1.23297903]
[1736280014463,5.9045,3385.7,3385.6,1.23297903]
[1736280014768,5.9045,3385.7,3385.2,2.95399]
[1736280015069,5.9045,3385.7,3385.2,3.249389]
[1736280015410,5.9045,3385.7,3385.1,3.0]
[1736280015610,2.59,3385.6,3384.8,1.5706]
[1736280015915,5.54368,3385.6,3384.6,2.95451]
[1736280016112,2.9538,3385.5,3384.5,0.5926911]
[1736280016295,3.73223684,3385.4,3384.4,5.95469]
[1736280017021,2.59,3385.1,3384.3,1.23297903]
[1736280017230,2.59,3385.3,3383.9,1.6155]
[1736280017521,5.9045,3385.1,3383.9,0.02954975]
[1736280017714,5.9045,3385.1,3384.3,3.0]
[1736280017870,7.108253,3385.1,3384.0,3.0]
[1736280018071,7.108253,3385.1,3384.1,2.95492]
[1736280018378,7.108253,3385.1,3384.0,3.0]
[1736280018379,7.108253,3385.1,3384.0,2.95504]
[1736280018567,2.95423,3385.0,3384.0,2.95504]
[1736280018769,2.59,3384.9,3383.7,0.5994887]
[1736280018968,3.36836684,3384.9,3384.1,3.0]
[1736280019164,3.36836684,3384.9,3383.7,0.5994887]
[1736280019419,2.95446,3384.8,3383.7,0.5994887]
[1736280019586,8.4945,3384.8,3383.7,2.95528]
[1736280019769,8.4945,3384.8,3384.2,2.9549]
[1736280019974,8.4945,3384.8,3384.3,3.0]
[1736280020412,9.42178668,3384.8,3384.1,3.0]
[1736280020581,8.4945,3384.8,3384.6,2.95448]
[1736280020772,8.4945,3384.8,3384.0,0.5575]
[1736280020973,2.59,3384.7,3383.6,1.6299]
[1736280021276,3.41923773,3384.1,3383.2,2.95576]
[1736280021595,2.59,3383.9,3382.8,1.23297903]
[1736280021803,8.4945,3383.9,3383.6,2.95541]
[1736280022185,8.4945,3383.9,3383.8,5.95525]
[1736280022715,5.9045,3383.9,3383.8,5.95525]
[1736280023270,5.9045,3383.9,3383.8,3.0]
[1736280023474,5.9045,3383.9,3383.4,2.95559]
[1736280023672,5.9045,3383.9,3383.5,2.95551]
[1736280024213,6.49495,3383.9,3383.3,3.0]
[1736280024433,6.49495,3383.9,3383.2,2.95573]
[1736280024587,5.9045,3383.9,3383.6,3.0]
[1736280024792,5.9045,3383.9,3383.6,5.95542]
[1736280025003,5.9045,3383.9,3383.7,2.95525]
[1736280025209,5.9045,3383.9,3383.5,3.0]
[1736280025395,5.9045,3383.9,3383.6,2.95541]
[1736280025900,5.9045,3383.9,3383.8,3.0]
[1736280026108,5.9045,3383.9,3383.3,0.5575]
[1736280026429,5.9045,3383.9,3382.9,1.5175]
[1736280026636,5.9045,3383.9,3382.6,4.47373]
[1736280026841,2.59,3383.8,3383.0,2.95594]
[1736280027043,2.95534,3383.7,3382.4,2.95648]
[1736280027213,1.144984,3383.6,3382.5,6.547608]
[1736280027418,7.049484,3383.6,3382.8,3.0]
[1736280028305,7.049484,3383.6,3382.3,2.9565]
[1736280028306,2.59,3383.5,3381.8,0.0075]
[1736280028500,8.4945,3383.5,3382.3,2.95654]
[1736280028708,2.59,3383.3,3381.8,1.6206]
[1736280029057,2.95585,3383.2,3382.1,2.95668]
[1736280029204,8.86035,3383.2,3382.2,2.95664]
[1736280029405,2.59,3383.0,3382.0,3.0]
[1736280029606,2.59,3383.0,3382.8,3.0]
[1736280029899,2.59,3383.0,3382.6,3.0]
[1736280030543,2.59,3383.0,3381.7,3.0]
[1736280030750,2.59,3383.0,3382.0,3.42673773]
[1736280030953,2.59,3383.0,3382.8,3.0]
[1736280031256,5.9045,3383.2,3383.1,2.95586]
[1736280031553,5.9045,3383.2,3383.1,5.95586]
[1736280033106,5.9045,3383.2,3383.1,3.0]
[1736280034358,5.9045,3383.2,3383.1,5.95586]
[1736280034576,5.9045,3383.2,3383.1,3.0]
[1736280034930,8.4945,3383.2,3383.1,3.0]
[1736280035952,5.9045,3383.2,3382.2,0.5575]
[1736280036248,6.75395,3383.2,3382.4,2.95643]
[1736280036552,2.95612,3382.9,3382.1,0.59130084]
[1736280036757,8.86062,3382.9,3381.8,2.95697]
[1736280036956,8.86062,3382.9,3381.9,2.95687]
[1736280037187,5.9045,3382.9,3381.6,1.607]
[1736280037497,5.9045,3382.9,3381.7,3.19026747]
[1736280037697,5.9045,3382.9,3382.3,3.96923773]
[1736280037999,5.9045,3382.9,3382.8,2.95613]
[1736280038547,5.9045,3382.9,3382.4,3.0]
[1736280038752,5.9045,3382.9,3382.4,2.95646]
[1736280039314,6.49495,3382.9,3381.9,1.5823]
[1736280039453,5.9045,3382.9,3382.4,2.95646]
[1736280039805,5.9045,3382.9,3382.3,2.95653]
[1736280040668,5.9045,3382.9,3382.4,2.95639]
[1736280040869,5.9045,3382.9,3382.2,2.95662]
[1736280041200,5.9045,3382.9,3382.3,3.0]
[1736280041398,6.49495,3382.9,3382.0,2.95676]
[1736280041760,5.9045,3382.9,3382.3,3.0]
[1736280042082,5.9045,3382.9,3382.1,2.9567]
[1736280042283,5.9045,3382.9,3382.2,3.0]
[1736280042487,6.49495,3382.9,3381.9,1.5823]
[1736280042650,6.49495,3382.9,3382.2,3.0]
[1736280042996,6.49495,3382.9,3382.0,3.0]
[1736280043257,6.49495,3382.9,3382.0,2.95682]
[1736280043781,3.41923773,3382.7,3381.0,0.15091703]
[1736280043978,2.59,3382.2,3380.8,1.6348]
[1736280044194,2.95674,3382.1,3380.9,2.95776]
[1736280044396,8.86124,3382.1,3380.9,2.95776]
[1736280045113,5.9045,3382.1,3380.8,1.6348]
[1736280045263,2.59,3381.5,3380.5,2.95807]
[1736280045468,0.554718,3381.4,3380.1,1.5463]
[1736280045724,2.9576,3381.2,3380.0,0.12916336]
[1736280045911,5.9045,3381.2,3380.0,0.12916336]
[1736280046080,2.59,3380.6,3380.0,0.0548]
[1736280046285,3.41923773,3380.3,3380.0,0.0548]
[1736280046485,2.95849,3380.1,3380.0,0.0548]
[1736280046895,8.86299,3380.1,3380.0,0.0548]
[1736280047106,11.45299,3380.1,3380.0,0.0548]
[1736280047589,11.45299,3380.1,3379.9,0.01]
[1736280047590,5.50127,3380.0,3379.9,0.01]
[1736280047795,2.95889,3379.7,3379.4,0.1696206]
[1736280048138,2.95896,3379.6,3379.4,0.1696206]
[1736280048337,8.3797,3379.6,3379.4,0.1696206]
[1736280048944,5.9045,3379.6,3379.5,2.95901]
[1736280049235,5.9045,3379.6,3379.5,8.44902317]
[1736280049538,2.4752,3380.8,3379.5,8.44902317]
[1736280049539,2.95788,3380.8,3379.7,3.0]
[1736280049691,2.95807,3380.6,3379.5,4.92202226]
[1736280049887,2.95807,3380.6,3379.5,4.88102226]
[1736280050138,2.95807,3380.6,3379.6,3.0]
[1736280050320,2.95788,3380.8,3379.6,3.80506429]
[1736280050519,3.41923773,3381.1,3379.4,3.1287106]
[1736280050758,0.5575,3380.8,3379.4,0.1696206]
[1736280050932,2.95787,3380.9,3379.4,0.1696206]
[1736280051099,3.41923773,3381.1,3379.4,0.1696206]
[1736280051313,5.43369,3380.1,3379.4,0.1696206]
[1736280051512,3.018569,3380.1,3379.4,0.1696206]
[1736280051912,2.4752,3380.1,3379.6,1.5464]
[1736280052116,2.4752,3380.1,3379.8,2.95873]
[1736280052297,2.4752,3380.1,3379.6,1.5464]
[1736280052619,2.4752,3380.1,3380.0,2.95857]
[1736280052800,2.4752,3381.4,3380.0,3.0]
[1736280053147,0.24752,3381.3,3380.0,3.6033822]
[1736280053310,2.4752,3381.0,3379.5,0.60073077]
[1736280053512,2.4752,3381.0,3379.8,2.95872]
[1736280053713,0.0075,3380.9,3379.5,0.60073077]
[1736280053912,2.4752,3380.3,3379.4,0.1696206]
[1736280054243,3.018544,3380.3,3379.4,0.1696206]
[1736280054543,2.95851,3380.1,3379.4,0.1696206]
[1736280054919,6.43778173,3380.3,3379.4,0.1696206]
[1736280055123,2.4752,3380.2,3379.4,0.1696206]
[1736280056104,2.95858,3380.0,3379.4,0.1696206]
[1736280056303,0.543378,3379.9,3379.4,0.1696206]
[1736280056528,5.43368,3380.2,3379.4,0.1696206]
[1736280056733,2.95857,3380.1,3379.4,0.1696206]
[1736280056937,2.4752,3380.2,3379.4,0.1696206]
[1736280057457,2.95851,3380.1,3379.4,0.1696206]
[1736280057621,2.4752,3380.2,3379.4,0.1696206]
[1736280058141,2.4752,3380.6,3380.0,2.95852]
[1736280058373,2.4752,3381.2,3380.3,1.5668]
[1736280058867,5.43274,3381.2,3380.3,1.5668]
[1736280059072,2.4752,3381.2,3380.3,1.5668]
[1736280059435,2.4752,3381.5,3380.6,2.958]
[1736280059660,2.72272,3381.5,3380.6,2.958]
[1736280059842,2.72272,3381.5,3380.4,2.95821]
[1736280060152,0.0075,3381.4,3380.3,4.5251]
[1736280060487,2.96485,3381.4,3380.3,1.5668]
[1736280060636,0.0075,3381.4,3380.3,1.5668]
[1736280060833,0.568741,3381.4,3380.3,2.02229205]
[1736280061066,5.68001,3381.5,3380.4,2.95819]
[1736280061377,2.95766,3381.1,3380.1,2.95848]
[1736280061582,2.4752,3381.4,3380.0,0.02958394]
[1736280061766,2.95776,3381.0,3380.0,2.95857]
[1736280061967,2.4827,3380.9,3379.9,1.5414]
[1736280062168,0.0075,3380.7,3379.6,0.0295858]
[1736280062477,0.0075,3380.7,3379.7,2.95883]
[1736280062690,0.0075,3380.7,3379.4,0.1696206]
[1736280062691,2.4827,3380.7,3379.4,0.1696206]
[1736280062990,0.0075,3380.1,3379.4,0.1696206]
[1736280063157,3.36873977,3380.1,3379.4,0.1696206]
[1736280063486,2.9662,3379.9,3379.4,0.1696206]
[1736280063895,0.0075,3379.7,3379.4,0.1696206]
[1736280064357,2.95901,3379.5,3379.4,0.1696206]
[1736280064546,8.88411,3379.5,3379.4,0.1696206]
[1736280064742,10.315921,3379.5,3379.4,0.1696206]
[1736280066298,7.356911,3379.5,3379.4,0.1696206]
[1736280066449,5.9176,3379.5,3379.4,0.1696206]
[1736280066783,5.9251,3379.5,3379.4,0.1696206]
[1736280067248,8.88411,3379.5,3379.4,0.1696206]
[1736280067448,5.9251,3379.5,3379.4,0.1696206]
[1736280067650,5.9176,3379.5,3379.4,0.1696206]
[1736280070362,5.9176,3379.5,3379.4,3.1287206]
[1736280070577,2.4752,3380.2,3379.4,3.1287206]
[1736280070578,0.24827,3380.8,3379.5,4.5979]
[1736280070911,2.4752,3381.0,3379.5,1.5979]
[1736280071209,2.95819,3380.5,3379.4,3.1286906]
[1736280071412,0.303319,3380.4,3379.4,3.1286906]
[1736280071574,0.295819,3380.4,3379.7,2.95883]
[1736280071907,5.43295,3381.0,3380.0,2.95854]
[1736280072074,2.4752,3381.2,3379.9,1.5979]
[1736280072408,2.4752,3381.3,3380.3,2.95829]
[1736280072909,0.89509411,3381.9,3379.6,3.41923773]
[1736280072910,5.43238,3381.6,3380.6,2.95802]
[1736280073203,2.4752,3382.0,3380.7,0.02957827]
[1736280073448,0.24752,3381.9,3381.2,2.95752]
[1736280073593,2.4752,3382.3,3381.4,2.95733]
[1736280074223,2.4752,3382.3,3381.5,0.0295723]
[1736280074424,2.4752,3382.3,3381.2,1.6039]
[1736280074425,2.4752,3382.8,3381.7,2.95702]
[1736280074628,0.88504777,3382.7,3381.8,2.95697]
[1736280075300,0.88504777,3382.7,3381.2,1.6039]
[1736280075644,0.88504777,3382.7,3380.5,3.0]
[1736280075645,0.0075,3381.8,3380.5,2.95806]
[1736280075797,0.0075,3381.8,3380.6,2.95802]
[1736280076001,2.4827,3381.8,3380.7,0.02957666]
[1736280076198,2.4827,3381.8,3381.0,2.95768]
[1736280076410,2.4827,3381.8,3380.4,7.95243773]
[1736280076411,2.4827,3381.8,3381.1,0.295768]
[1736280076630,2.4827,3381.8,3381.3,2.95741]
[1736280076809,2.4827,3381.8,3381.2,2.95752]
[1736280077010,2.4827,3381.8,3381.1,0.295768]
[1736280077244,2.4827,3381.8,3380.8,2.95785]
[1736280077478,0.0075,3381.6,3380.6,1.6307]
[1736280077873,2.96468,3381.6,3380.6,1.6307]
[1736280078395,0.0075,3381.3,3380.1,2.95846]
[1736280078550,0.0075,3381.0,3380.2,3.0]